Cogmind - Beta 15 @@@ ROGUE MODE // 2025.07.07 @ 20:52:03 Player: cloodskull Result: Destroyed by L-41 Fighter with Axe Performance ------------- Evolutions (4) 2000 Regions Visited (7) 1400 Robots Destroyed (29) 145 Value Destroyed (910) 910 Prototype IDs (8) 160 Alien Tech Used (0) 0 Bonus (300) 300 TOTAL SCORE: 4915 Bonus ------- Aligned with FarCom 300 Cogmind --------- Core Integrity 0/850 Matter 180/300 Energy 160/160 System Corruption 3% Temperature Cool (0) Movement Core (100) Ox1 Location -6/Factory Parts ------- > --- POWER (2) -------- Light Nuclear Core > --- PROPULSION (4) --- (None) > --- UTILITY (6) ------ (None) > --- WEAPON (3) ------- (None) > --- INVENTORY (5) ---- Gravmag System High-capacity Battery (250) Peak State ------------ > --- POWER ------------ Enhanced Nuclear Core Fission Core > --- PROPULSION ------- Light Treads Aluminum Leg Aluminum Leg Armored Wheel > --- UTILITY ---------- Cooling System Improved Reaction Control System Improved Medium Armor Plating Force Field > --- WEAPON ----------- Particle Gun Autogun > --- INVENTORY -------- Light Treads Wheel Armored Wheel High-capacity Battery Matter Filter [Rating: 35] Favorites ----------- Power Ion Engine Engine Ion Engine Power Core Light Nuclear Core Propulsion Improved Treads Treads Improved Treads Leg Aluminum Leg Wheel Compact Wheel Hover Unit Airjet Flight Unit Improved Flight Unit Utility Large Storage Unit Device Supersonic Drone Bay Storage Large Storage Unit Processor Targeting Computer Protection Medium Armor Plating Weapon Light Assault Rifle Energy Gun Particle Gun Energy Cannon Heavy Plasma Cannon Ballistic Gun Light Assault Rifle Ballistic Cannon Improved Light Cannon Launcher Grenade Launcher Special Weapon Field Lobotomy Kit Build | -11 -10 -10 -10 -9 -8 -7 -6 ------- Run | Yrd Mat Min Exi Min Mat Fac Fac Slots Evolved 8 | . . . . . 4 2 2 Power 1 | . . . . . . 1 . Propulsion 2 | . . . . . 2 . . Utility 4 | . . . . . 2 . 2 Weapon 1 | . . . . . . 1 . Parts Attached 58 | 7 5 1 4 1 12 14 14 Power 9 | 1 . . 1 1 2 . 4 Engine 5 | 1 . . 1 . 2 . 1 Core 4 | . . . . 1 . . 3 Reactor . | . . . . . . . . Propulsion 18 | 2 2 . . . 4 5 5 Treads 6 | 1 1 . . . 2 1 1 Leg 2 | . . . . . . 2 . Wheel 7 | 1 1 . . . 1 1 3 Hover 2 | . . . . . . 1 1 Flight 1 | . . . . . 1 . . Utility 15 | 1 3 . 2 . 2 5 2 Device 7 | . . . 2 . . 3 2 Storage 3 | 1 1 . . . 1 . . Processor 3 | . 2 . . . 1 . . Hackware . | . . . . . . . . Protection 2 | . . . . . . 2 . Artifact . | . . . . . . . . Weapon 16 | 3 . 1 1 . 4 4 3 Energy Gun 3 | 1 . . . . . 2 . Energy Cannon 1 | . . . . . . . 1 Ballistic Gun 7 | 2 . 1 . . . 2 2 Ballistic Cannon 3 | . . . . . 3 . . Launcher 1 | . . . . . 1 . . Special Weapon 1 | . . . 1 . . . . Impact Weapon . | . . . . . . . . Slashing Weapon . | . . . . . . . . Piercing Weapon . | . . . . . . . . Special Melee Weapon . | . . . . . . . . Unidentified Prototypes 8 | . . . 3 . 1 3 1 Parts Lost 38 | . 1 3 . . 11 6 17 Power 7 | . . 1 . . 2 1 3 Propulsion 15 | . 1 1 . . 5 2 6 Utility 7 | . . . . . 1 1 5 Weapon 9 | . . 1 . . 3 2 3 Highest Loss Streak 10 | . 1 3 . . 8 4 10 To Critical Strikes . | . . . . . . . . Average Backups 8 | 3 8 11 12 11 7 4 4 Power 1 | . 1 3 2 2 1 . . Propulsion 2 | 2 3 3 3 2 . . 2 Utility 1 | . . . 1 2 2 3 1 Weapon 3 | . 3 5 5 5 3 . . Tool/Special . | . . . . . . . . Unused Backups 8 | . 5 . . . 2 . 1 Power 1 | . 1 . . . . . . Propulsion 4 | . 4 . . . . . . Utility 1 | . . . . . . . 1 Weapon 2 | . . . . . 2 . . Tool/Special . | . . . . . . . . Average Slot Usage (%) 59 | . 93 81 60 94 59 28 31 Engine 3 | . 14 7 . 1 3 2 1 Core 2 | . . . . 12 4 . 4 Treads 11 | . 14 14 14 26 18 . 2 Leg 1 | . . . . . . 4 4 Wheel 3 | . 12 3 . . . 3 4 Device 6 | . . . 10 14 6 1 6 Storage 8 | . 14 14 14 14 7 . . Processor 3 | . 9 14 3 . 5 . . Ballistic Gun 13 | . 28 28 16 24 6 3 2 Peak Build Rating 35 | 6 10 10 17 19 26 19 35 Average Rating 11 | 4 7 7 12 17 17 8 12 On Entrance 9 | . 6 10 7 15 19 5 15 Naked Turns 102 | . . . . . 30 37 35 Heaviest Build 42 | 13 28 28 27 28 34 15 42 Greatest Support 89 | 16 23 23 23 43 89 16 22 Greatest Overweight (x) 9 | 1 4 1 1 1 9 . 2 Average Overweight (x) . | . . . . . . . . Largest Inventory Capacity 15 | 8 15 15 15 15 15 5 5 Average Capacity 10 | 7 10 15 15 15 12 5 5 Most Carried 14 | 6 12 12 14 13 11 5 5 Average Carried 8 | 3 8 11 13 11 6 4 4 Final Capacity 15 | 8 15 15 15 15 5 5 5 Final Carried 13 | 6 12 11 13 12 4 5 2 Class Distribution -------------------- 98% | Mutant Dominant Class ---------------- Mutant | -10/Materials Mutant | -10/Mines Mutant | -10/Exiles Mutant | -9/Mines Mutant | -8/Materials Mutant | -7/Factory Mutant | -6/Factory Resources | -11 -10 -10 -10 -9 -8 -7 -6 ----------- Run | Yrd Mat Min Exi Min Mat Fac Fac Matter Collected 962 | 198 239 50 40 . 121 160 154 Remotely . | . . . . . . . . Salvage Created 980 | . 310 158 . . 136 205 171 Parts 50 | . 17 10 . . 5 10 8 Haulers Intercepted . | . . . . . . . . Recyclers Shooed 3 | . . . . . 1 . 2 Parts Field Recycled . | . . . . . . . . Retrieved Matter . | . . . . . . . . Parts Self-Destructed . | . . . . . . . . Prevented . | . . . . . . . . Kills | -11 -10 -10 -10 -9 -8 -7 -6 ------- Run | Yrd Mat Min Exi Min Mat Fac Fac Combat Hostiles Destroyed 23 | . 9 2 . . 5 3 4 Melee 1 | . . . . . . . 1 Guns 17 | . 9 2 . . . 3 3 Cannons 2 | . . . . . 2 . . AOE 2 | . . . . . 2 . . Classes Destroyed 7 | . 3 1 . . . 3 . Builder 1 | . . . . . . 1 . Tunneler 1 | . . . . . . 1 . Recycler 2 | . . 1 . . 1 . . Watcher 2 | . 2 . . . . . . Swarmer 6 | . 4 . . . . . 2 Grunt 16 | . 5 2 . . 5 2 2 Sentry 1 | . . . . . . 1 . Best Kill Streak 3 | . 2 3 . . 2 3 2 Combat Bots Only 2 | . 2 2 . . 2 2 2 Max Kills in Single Turn 2 | . 1 1 . . 2 1 1 Gunslinging . | . . . . . . . . Exploded 2 | . . . . . 2 . . Melee 1 | . . . . . . . 1 Uniques/NPCs Destroyed . | . . . . . . . . Combat | -11 -10 -10 -10 -9 -8 -7 -6 -------- Run | Yrd Mat Min Exi Min Mat Fac Fac Hostile Shots Fired 514 | . 44 23 . . 141 133 173 Missed 148 | . 12 8 . . 31 45 52 Hits 366 | . 32 15 . . 110 88 121 Melee 13 | . . . . . . . 13 Projectile 353 | . 32 15 . . 110 88 108 Critical Strikes 12 | . . . . . 3 4 5 Damage Taken 5633 | . 342 192 . . 1821 1164 2114 Core 1910 | . 80 16 . . 459 504 851 Absorbed by Shields 167 | . . . . . . . 167 Core Remaining (%) 51 | 100 . . . 61 16 28 . Volleys Fired 155 | . 38 13 . . 34 38 32 Largest 2 | . 2 2 . . 2 1 2 Hottest 88 | . 40 40 . . 67 65 88 Shots Fired 222 | . 76 23 . . 51 39 33 Gun 171 | . 76 23 . . . 39 33 Cannon 48 | . . . . . 48 . . Launcher 3 | . . . . . 3 . . Special . | . . . . . . . . Kinetic 204 | . 76 23 . . 48 25 32 Thermal 15 | . . . . . . 14 1 Explosive 3 | . . . . . 3 . . Electromagnetic . | . . . . . . . . Robot Hit Streak 11 | . 8 8 . . 6 11 7 Robot Miss Streak 7 | . 5 2 . . 4 5 7 Penetration Max . | . . . . . . . . Secondary Targets 1 | . . 1 . . . . . Max Gunslinging Chain 1 | . . 1 . . . . . Shots Hit Robots 146 | . 50 17 . . 32 25 22 Core Hits 81 | . 19 7 . . 12 11 32 Critical Kills 1 | . . 1 . . . . . Critical Parts Destroyed 1 | . 1 . . . . . . Critical Strikes 2 | . 1 1 . . . . . Destroy 2 | . 1 1 . . . . . Melee Attacks . | . . . . . . . . Impact . | . . . . . . . . Slashing . | . . . . . . . . Piercing . | . . . . . . . . Sneak Attacks . | . . . . . . . . Combat Hostiles . | . . . . . . . . Follow-up Attacks . | . . . . . . . . Damage Inflicted 2383 | . 534 132 . . 842 434 441 Guns 1454 | . 534 132 . . . 434 354 Cannons 712 | . . . . . 712 . . Explosions 126 | . . . . . 126 . . Melee . | . . . . . . . . Ramming 91 | . . . . . 4 . 87 Kinetic 1994 | . 534 132 . . 712 262 354 Thermal 172 | . . . . . . 172 . Explosive 126 | . . . . . 126 . . Electromagnetic . | . . . . . . . . Impact . | . . . . . . . . Slashing . | . . . . . . . . Piercing . | . . . . . . . . Highest Corruption 6 | . . . . . . 6 3 Average Corruption 2 | . . . . . . 2 2 Corruption Purged . | . . . . . . . . Corruption Blocked . | . . . . . . . . Effects 4 | . . . . . . 3 1 Message Errors 1 | . . . . . . . 1 Matter Fused 1 | . . . . . . 1 . Energy Discharges 1 | . . . . . . 1 . Misfires 1 | . . . . . . 1 . Overload Shots . | . . . . . . . . Overflow Damage 13 | . . . . . 13 . . Projectiles 13 | . . . . . 13 . . Explosions . | . . . . . . . . Melee . | . . . . . . . . Knockbacks 11 | . . . . . 11 . . Impact . | . . . . . . . . Kinetic 11 | . . . . . 11 . . Secondary . | . . . . . . . . Self-Inflicted Damage 65 | . . . . . 27 . 38 Shots 2 | . . . . . 2 . . Rammed 29 | . . . . . 3 . 26 Targets Rammed 31 | . . . . . 3 . 28 Kicked 2 | . . . . . . . 2 Crushed . | . . . . . . . . Highest Temperature 345 | . 18 24 . . 250 345 76 Average Temperature 82 | . 8 9 . . 134 94 26 Received Heat Transfer 2176 | . 132 108 . . 1035 273 628 Effects 4 | . . . . . 4 . . Energy Bleed 1 | . . . . . 1 . . Interference 3 | . . . . . 3 . . Siege Activations . | . . . . . . . . Martial Activations . | . . . . . . . . Shielding Activations . | . . . . . . . . Robots Disrupted . | . . . . . . . . Combat Hostiles . | . . . . . . . . Robots Corrupted . | . . . . . . . . Combat Hostiles . | . . . . . . . . Parts Fried . | . . . . . . . . Impact Corruptions . | . . . . . . . . Robots Melted . | . . . . . . . . Combat Hostiles . | . . . . . . . . Parts Melted 1 | . . . . . . 1 . Heat Transferred 407 | . . . . . . 407 . Parts Sabotaged . | . . . . . . . . Parts Stolen . | . . . . . . . . Parts Stripped . | . . . . . . . . Power Chain Reactions . | . . . . . . . . Alert | -11 -10 -10 -10 -9 -8 -7 -6 ------- Run | Yrd Mat Min Exi Min Mat Fac Fac Maximum Alert Level . | . . . . . . . . Low Security (%) 100 | 100 100 100 . 100 100 100 100 Level 1 . | . . . . . . . . Level 2 . | . . . . . . . . Level 3 . | . . . . . . . . Level 4 . | . . . . . . . . Level 5 . | . . . . . . . . High Security . | . . . . . . . . Max Security . | . . . . . . . . Peak Influence 172 | . 70 40 . . 93 57 172 Initial 42 | . . 9 . . . 42 11 Average 25 | . 29 19 . . 20 10 70 Influence Increases 1013 | . 253 55 . . 289 96 320 Destroy 0b10 Robot/C 460 | . 180 40 . . 100 60 80 Destroy 0b10 Robot/NC 30 | . 10 5 . . 5 10 . Destroy Leader 74 | . 34 10 . . 20 10 . Successful Hack 14 | . 14 . . . . . . Disable Machine 15 | . . . . . 15 . . Destroy Structure 15 | . . . . . 14 1 . Partial Spotted 45 | . . . . . 15 15 15 Lose Combat Pursuer 360 | . 15 . . . 120 . 225 Influence Decreases 889 | . 227 56 25 . 196 166 219 Entered New Map 105 | . . 17 25 . . 51 12 Time Decay 605 | . 217 20 . . 116 115 137 Lost Part 169 | . 10 19 . . 70 . 70 Lost Ally 10 | . . . . . 10 . . Squads Dispatched 13 | . 1 . . . 5 4 3 Investigation 1 | . . . . . 1 . . Extermination 1 | . . . . . . 1 . Reinforcement 3 | . 1 . . . 1 1 . Assault 2 | . . . . . . 2 . Garrison 6 | . . . . . 3 . 3 Intercept . | . . . . . . . . Searches Triggered . | . . . . . . . . Construction Impeded . | . . . . . . . . Haulers Reinforced . | . . . . . . . . Active Scanning Responses . | . . . . . . . . Cargo Convoy Interrupts . | . . . . . . . . Stealth | -11 -10 -10 -10 -9 -8 -7 -6 --------- Run | Yrd Mat Min Exi Min Mat Fac Fac Distress Signals 4 | . 2 . . . 2 . . Communications Jammed . | . . . . . . . . Distress Signals . | . . . . . . . . Times Spotted 67 | . 13 2 . . 21 8 23 Peak Tracking Total 8 | . 3 2 . . 8 4 7 Tactical Retreats 11 | . 1 . . . 4 . 6 Traps | -11 -10 -10 -10 -9 -8 -7 -6 ------- Run | Yrd Mat Min Exi Min Mat Fac Fac Traps Triggered 5 | . . . . . 1 2 2 Indirectly . | . . . . . . . . Trap Hack Attempts . | . . . . . . . . Triggered . | . . . . . . . . Disarmed . | . . . . . . . . Reprogrammed . | . . . . . . . . Reused . | . . . . . . . . Traps Extracted . | . . . . . . . . Installed . | . . . . . . . . Triggered . | . . . . . . . . Machines | -11 -10 -10 -10 -9 -8 -7 -6 ---------- Run | Yrd Mat Min Exi Min Mat Fac Fac Machines Disabled 1 | . . . . . 1 . . Max in Single Turn 1 | . . . . . 1 . . Garrison Access 1 | . . . . . . 1 . Machines Repaired . | . . . . . . . . Machines Dismantled . | . . . . . . . . Machines Sabotaged . | . . . . . . . . Overloaded Fab Kills . | . . . . . . . . Hacking | -11 -10 -10 -10 -9 -8 -7 -6 --------- Run | Yrd Mat Min Exi Min Mat Fac Fac Machines Accessed 6 | . 5 . . . . . 1 Terminals 6 | . 5 . . . . . 1 Fabricators . | . . . . . . . . Repair Stations . | . . . . . . . . Recycling Units . | . . . . . . . . Scanalyzers . | . . . . . . . . Garrison Access . | . . . . . . . . Total Hacks 19 | . 17 . . . . . 2 Successful 10 | . 9 . . . . . 1 Failed 9 | . 8 . . . . . 1 Catastrophic 1 | . 1 . . . . . . Database Lockouts . | . . . . . . . . Manual 9 | . 8 . 1 . . . . Terminals 19 | . 17 . . . . . 2 Fabricators . | . . . . . . . . Repair Stations . | . . . . . . . . Recycling Units . | . . . . . . . . Scanalyzers . | . . . . . . . . Garrison Access . | . . . . . . . . Terminal Hacks 6 | . 5 . . . . . 1 Record 2 | . 2 . . . . . . Open DSF 1 | . . . . . . . 1 Dispatch Records 1 | . 1 . . . . . . Maintenance Status 1 | . 1 . . . . . . Zone Layout 1 | . 1 . . . . . . Fabricator Hacks . | . . . . . . . . Repair Station Hacks . | . . . . . . . . Recycling Unit Hacks . | . . . . . . . . Scanalyzer . | . . . . . . . . Garrison Access Hacks . | . . . . . . . . Unauthorized Hacks 4 | . 4 . . . . . . Terminals 4 | . 4 . . . . . . Botnet 4 | . 4 . . . . . . Fabricators . | . . . . . . . . Repair Stations . | . . . . . . . . Recycling Units . | . . . . . . . . Scanalyzers . | . . . . . . . . Garrison Access . | . . . . . . . . Data Cores Recovered . | . . . . . . . . Used . | . . . . . . . . Hacking Detections 5 | . 5 . . . . . . Full Trace Events . | . . . . . . . . Feedback Events . | . . . . . . . . Feedback Blocked . | . . . . . . . . Robot Schematics Acquired . | . . . . . . . . Robots Built . | . . . . . . . . Authchips . | . . . . . . . . Time . | . . . . . . . . Total Robot Build Rating . | . . . . . . . . Part Schematics Acquired . | . . . . . . . . Parts Built . | . . . . . . . . Authchips . | . . . . . . . . Time . | . . . . . . . . Total Part Build Rating . | . . . . . . . . Parts Repaired . | . . . . . . . . Time . | . . . . . . . . Parts Recycled . | . . . . . . . . Recycled Matter . | . . . . . . . . Retrieved Matter . | . . . . . . . . Retrieved Components . | . . . . . . . . Parts Scanalyzed . | . . . . . . . . Part Schematics Acquired . | . . . . . . . . Parts Damaged . | . . . . . . . . Bothacking | -11 -10 -10 -10 -9 -8 -7 -6 ------------ Run | Yrd Mat Min Exi Min Mat Fac Fac Used RIF Installer . | . . . . . . . . Robots Hacked . | . . . . . . . . Non-combat . | . . . . . . . . Combat . | . . . . . . . . Robot Hacks Applied . | . . . . . . . . Relay Couplers Released 3 | . . . . . . 3 . Machine Destruction 3 | . . . . . . 3 . Fabnet Peak Effective % . | . . . . . . . . Robots Rewired . | . . . . . . . . Allies Hacked . | . . . . . . . . Hacks Repelled . | . . . . . . . . Allies | -11 -10 -10 -10 -9 -8 -7 -6 -------- Run | Yrd Mat Min Exi Min Mat Fac Fac Total Allies . | . . . . . . . . Largest Group . | . . . . . . . . Highest-Rated Group . | . . . . . . . . Highest-Rated Ally . | . . . . . . . . Total Orders . | . . . . . . . . Ally Attacks . | . . . . . . . . Total Damage . | . . . . . . . . Kills . | . . . . . . . . Allies Corrupted . | . . . . . . . . Allies Melted . | . . . . . . . . Intel | -11 -10 -10 -10 -9 -8 -7 -6 ------- Run | Yrd Mat Min Exi Min Mat Fac Fac Active Infowar (turns) 32 | . 32 . . . . . . Optics 32 | . 32 . . . . . . Robot Analysis Total . | . . . . . . . . Derelict Logs Recovered 2 | . . 1 . 1 . . . Drone Launches 1 | . . . . . 1 . . Drone Recoveries . | . . . . . . . . Exploration | -11 -10 -10 -10 -9 -8 -7 -6 ------------- Run | Yrd Mat Min Exi Min Mat Fac Fac Turns Passed 3379 | 78 561 73 914 284 464 583 422 Spaces Moved 2298 | 64 284 23 559 122 319 597 330 Core 423 | 4 16 . . . 46 130 227 Treads 859 | . 70 23 559 122 84 . 1 Legs 22 | . . . . . . 2 20 Wheels 524 | 60 198 . . . 4 180 82 Hover 103 | . . . . . . 103 . Flight 367 | . . . . . 185 182 . Fastest Speed 40 | 50 100 160 160 160 40 40 50 Average Speed 108 | 97 143 170 161 166 79 63 72 Slowest Speed 500 | 100 250 240 240 240 500 120 260 Overloaded Moves . | . . . . . . . . Propulsion Burnouts . | . . . . . . . . Robots Hopped . | . . . . . . . . Potential Cave-ins 1 | . . . . . 1 . . Cave-ins Triggered 1 | . . . . . 1 . . Exploration Rate (%) 32 | 4 58 11 91 34 39 14 10 Regions Visited 7 Branch Regions 3 Pre-discovered Areas . | . . . . . . . . Known Exits Taken . | . . . . . . . . Unknown Exits Taken 7 | 1 1 1 1 1 1 1 . Scrap Searched . | . . . . . . . . Spaces Dug . | . . . . . . . . Terrain Destroyed 19 | . . . . . 19 . . Melee . | . . . . . . . . Projectile 4 | . . . . . 4 . . AOE 15 | . . . . . 15 . . Terrain Rammed . | . . . . . . . . Walls Destroyed . | . . . . . . . . Machines Disabled . | . . . . . . . . Actions | -11 -10 -10 -10 -9 -8 -7 -6 --------- Run | Yrd Mat Min Exi Min Mat Fac Fac Total 2970 | 76 372 38 570 202 469 762 481 Wait 367 | . 24 2 . 77 95 101 68 Move 2291 | 63 283 22 558 121 318 596 330 Hop . | . . . . . . . . Pick Up 31 | 6 13 . 2 1 2 5 2 Fast Attach 37 | 6 2 . 4 . 4 11 10 Attach 23 | . 1 1 1 2 8 6 4 Detach 5 | . . . 2 . . 2 1 Swap 6 | 1 2 . . 1 1 . 1 Drop 24 | . 9 . 3 . 4 3 5 Fire 155 | . 38 13 . . 34 38 32 Melee . | . . . . . . . . Ram 29 | . . . . . 3 . 26 Kick 2 | . . . . . . . 2 Crush . | . . . . . . . . Escape Stasis . | . . . . . . . . Rewire . | . . . . . . . . Trap . | . . . . . . . . Miscellaneous . | . . . . . . . . Route ------- -11/Scrapyard -10/Materials (discovered 3 exits: [*Mat] / [*Min x2]) -10/Mines (discovered 2 exits: [*Mat] / *Exi) -10/Exiles (discovered 2 exits: [*Min x2]) -9/Mines -8/Materials -7/Factory -6/Factory History --------- Turn | Location | Event 8 | -11/Scrapyard | Discovered new exit (range 16) 79 | -11/Scrapyard | Entered Materials 297 | -10/Materials | Discovered new exit (range 16) 309 | -10/Materials | Build established: Mutant 401 | -10/Materials | Discovered new exit (range 14) 616 | -10/Materials | Discovered new exit (range 11) 640 | -10/Materials | Entered Mines 643 | -10/Mines | Met a Derelict bent on vengeance 685 | -10/Mines | Learned 4 Materials zone layouts 685 | -10/Mines | Discovered new exit (range 8) 706 | -10/Mines | Deemed a non-threat by the Exiles lab entrance 706 | -10/Mines | Discovered new exit (range 5) 707 | -10/Mines | Lost 3 parts (1p1n1w) 713 | -10/Mines | Entered Exiles 753 | -10/Exiles | Met 8R-AWN 779 | -10/Exiles | Met EX-HEX 825 | -10/Exiles | Met EX-BIN 845 | -10/Exiles | Aligned with FarCom system 846 | -10/Exiles | Given EX-Vault access code 888 | -10/Exiles | Opened EX-Vault 895 | -10/Exiles | Found Prototype Special Weapon 895 | -10/Exiles | Identified Field Lobotomy Kit 901 | -10/Exiles | Found Prototype Device 901 | -10/Exiles | Identified Supersonic Drone Bay 906 | -10/Exiles | Found Prototype Device 906 | -10/Exiles | Identified Skeleton Box 943 | -10/Exiles | Warned to stay clear of 0b10 Research branches 991 | -10/Exiles | Met EX-DEC 1095 | -10/Exiles | Discovered new exit (range 14) 1227 | -10/Exiles | Visited The Gauntlet 1601 | -10/Exiles | Discovered new exit (range 14) 1627 | -10/Exiles | Left Exiles lab with Supersonic Drone Bay 1627 | -10/Exiles | Entered Mines 1825 | -9/Mines | Learned location of 1 exit from Proximity Caves 1834 | -9/Mines | Found a damaged Exp. Sensor Array with a note attached 1838 | -9/Mines | Found Prototype Device 1880 | -9/Mines | A weapon hastily lodged in a ceiling crevice suddenly fell to the ground 1904 | -9/Mines | Discovered new exit (range 4) 1911 | -9/Mines | Entered Materials 1911 | -8/Materials | Evolved 4 slots: Propulsion x2, Utility x2 2100 | -8/Materials | Garrison activated, responded to threat 2211 | -8/Materials | Lost 8 parts (2p4n2w) 2243 | -8/Materials | Crushed by falling debris 2255 | -8/Materials | Released all parts (4) 2260 | -8/Materials | Core integrity fell below 50% 2285 | -8/Materials | Lost 3 parts (1n1u1w) 2370 | -8/Materials | Discovered new exit (range 13) 2371 | -8/Materials | Core integrity fell below 20% 2375 | -8/Materials | Entered Factory 2375 | -7/Factory | Evolved 2 slots: Power x1, Weapon x1 2496 | -7/Factory | Identified Exp. Sensor Array 2623 | -7/Factory | Core integrity fell below 50% 2652 | -7/Factory | Lost 4 parts (1p2n1w) 2900 | -7/Factory | Discovered new exit (range 9) 2958 | -7/Factory | Entered another Factory area 2958 | -6/Factory | Evolved 2 slots: Utility x2 2960 | -6/Factory | Identified exit to DSF 3128 | -6/Factory | Lost 10 parts (2p3n3u2w) 3172 | -6/Factory | Garrison activated, responded to threat 3179 | -6/Factory | Core integrity fell below 50% 3279 | -6/Factory | Core integrity fell below 20% 3380 | -6/Factory | Destroyed by L-41 Fighter with Axe Last Messages --------------- 03351_ Acquired 70 matter. 03351_ R-10 Processor collects Adv. Heat Sink. 03355_ Manufacturing Mainframe disabled. 03364_ G-50 Soldier destroyed. 03366_ K-01 Serf collects debris. 03367_ Autogun destroyed. 03368_ Slammed into L-41 Fighter. 03369_ Acquired 54 matter. 03369_ Slammed into L-41 Fighter. 03370_ K-01 Serf collects debris. 03371_ Slammed into L-41 Fighter. 03373_ Wheel destroyed. 03374_ Slammed into L-41 Fighter. 03374_ K-01 Serf collects debris. 03376_ Angular Momentum Engine destroyed. 03376_ Broken Arm. Wheel destroyed. 03377_ HRXJGGOD&KTE:ITV:EE>%DTTIKXBRF 03380_ Slammed into G-50 Soldier. Map ----- +----------------------------------------------------+ | ???????????????????????????????????????????????? | | ???????????????????????????????????????????????? | | ???????????????????????????????????????????????? | | ???????????????????????????????????????????????? | | ???????????????????????????????????????????????? | | ???????????????????????????????????????????????? | | ???????????????????????????????????????????????? | | ???????????????????????????????????????????????? | | ???????????????????????????????????????????????? | | ???????????????????????????????????????????????? | | ?????????????????? ????????????????????????????? | | ?????????????????? ????????????????????????????? | | ????????????????? ????????????????????????????? | | ???????????????? ????????????????????????????? | | ????????????????" ????????????????????????????? | | ????????????????"T ????????????????????????????? | | ???????????????? ????????????????????????????? | | ???????????????? /w????????????????????????????? | | ????????????????# #????????????????????????????? | | ????????????????# ########?????????????????????? | | ????????????????# # #?????????????????????? | | ????????????????# + """" #?????????????????????? | | ????????????????# #*"""" #?????????????????????? | | ????????????????# #[ """ #?????????????????????? | | ???############## /k"""" #?????????????????????? | | ???# # #=! g@l#?????????????????????? | | ???# # ##############???????????????? | | ???# # ??????????????? | | ???# "" "" # ??????????????? | | ???# "" "" # ??????????????? | | ???# """ """= + """" """" ???????????????? | | ???#! """ """ # """" ????????????????????? | | ???# """ """ #C """" ????????????????????? | | ???# # """" ????????????????????? | | ???# # """" ????????????????????? | | ???# ? !# """" ????????????????????? | | ?????? # """" """"????????????????? | | ??????#######/### ??????????????? | | ????????????# ??# """" """" ???????????????? | | ????????????# ??# """" ""??????????????????? | | ????????????# ??# """" ????????????????????? | | ???##########+### """"?????????????????????? | | ???# ! ! # """"?????????????????????? | | ???# # """" ????????????????????? | | ???# " " " " " # """" """"????????????????? | | ???# " " " " " # ??????????????? | | ???# " " " " " # """" """"????????????????? | | ???# " " " " " + """" ????????????????????? | | ???# " " " " " # """" ????????????????????? | | ???# " " " " " # """"?????????????????????? | +----------------------------------------------------+ Best States ------------- Heat Dissipation 37 Energy Generation 30 Energy Capacity 510 Matter Stores 300 Matter Capacity 500 Sight Range 18 Terrain Scan Density 10 Armor Coverage 225 Evasion (%) 62 Targeting Accuracy 5 Recoil Reduction 4 Matter Filtering 30 Salvage Targeting 1 Item Schematics ----------------- None Robot Schematics ------------------ None Fabricated ------------ Nothing Repaired ---------- Nothing Alien Tech Used ----------------- None Achievements -------------- Fist Fight Oops Troublemaker Universal Adapter Unlikely Earthworm Challenges ------------ None Game ------ Seed WeldingArmageddonWell Manual? 0 Play Time 00:45:06 Cumulative 5.1 hours Start 2025.07.07 @ 20:03:44 End 2025.07.07 @ 20:52:03 Sessions 1 Manual Loads 0 Difficulty Rogue Special Mode None Game No. 4 Rogue 4 Adventurer 0 Explorer 0 Win Type - Total 0 Types 0/0/0/0/0/0/0/0/0/0 Lore% 3 Gallery% 9 Achievement% 13 Wizard Run 0 Options --------- Layout 1 ASCII 0 Keyboard 0 Movement Numpad Keybinds 0 Fullscreen 1 Font 24/X11 Map View 50x35 Zoom Use 0% Tactical HUD 1 Map Filters NONE Filters NONE Steam 1 RUN: 23b15770-6231-4996-a51f-8a5beccdd14e